fUSD/lending_fUSD_20241106
["ID","MTS","AMOUNT","RATE_DAILY","PERIOD"]
[341476160,1730920245721,-500.0,0.00027671,2]
[341476161,1730920245731,-619.47,0.00027671,2]
[341476162,1730920245742,-1552.17,0.00027671,2]
[341476163,1730920245751,-169.38901762,0.00027671,2]
[341476164,1730920245761,-500.0,0.00027671,2]
[341476165,1730920245771,-500.0,0.00027671,2]
[341476166,1730920245782,-500.0,0.00027671,2]
[341476167,1730920245792,-852.71,0.00027671,2]
[341476168,1730920245818,-985.31,0.00027671,2]
[341476169,1730920245842,-502.26913377,0.00027671,2]
[341476170,1730920245863,-500.0,0.00027671,2]
[341476171,1730920245888,-500.0,0.00027671,2]
[341476172,1730920245907,-1319.54,0.00027671,2]
[341476173,1730920245925,-500.0,0.00027671,2]
[341476174,1730920245943,-500.0,0.00027671,2]
[341476175,1730920245960,-500.0,0.00027671,2]
[341476176,1730920245980,-500.0,0.00027671,2]
[341476177,1730920246003,-1040.45,0.00027671,2]
[341476178,1730920246017,-500.0,0.00027671,2]
[341476179,1730920246037,-544.73,0.00027671,2]
[341476180,1730920246056,-1047.75,0.00027671,2]
[341476181,1730920246075,-1243.71,0.00027671,2]
[341476182,1730920246092,-809.24,0.00027671,2]
[341476183,1730920246109,-500.0,0.00027671,2]
[341476184,1730920246126,-500.0,0.00027671,2]
[341476185,1730920246144,-508.7,0.00027671,2]
[341476186,1730920246161,-2961.59,0.00027671,2]
[341476187,1730920246180,-1768.07,0.00027671,2]
[341476188,1730920246198,-500.0,0.00027671,2]
[341476189,1730920246215,-500.0,0.00027671,2]
[341476190,1730920246233,-3662.42,0.00027671,2]
[341476191,1730920246251,-501.74816056,0.00027671,2]
[341476192,1730920246275,-500.0,0.00027671,2]
[341476193,1730920246292,-500.0,0.00027671,2]
[341476194,1730920246309,-626.81,0.00027671,2]
[341476195,1730920246327,-500.0,0.00027671,2]
[341476196,1730920246346,-543.01,0.00027671,2]
[341476198,1730920246363,-706.05,0.00027671,2]
[341476199,1730920246381,-500.0,0.00027671,2]
[341476200,1730920246399,-500.0,0.00027671,2]
[341476201,1730920246415,-500.0,0.00027671,2]
[341476202,1730920246432,-500.0,0.00027671,2]
[341476203,1730920246450,-651.62,0.00027671,2]
[341476204,1730920246466,-500.0,0.00027671,2]
[341476205,1730920246482,-2251.89,0.00027671,2]
[341476206,1730920246500,-1884.31,0.00027671,2]
[341476207,1730920246516,-500.0,0.00027671,2]
[341476208,1730920246532,-500.0,0.00027671,2]
[341476209,1730920246549,-732.87,0.00027671,2]
[341476210,1730920246566,-500.0,0.00027671,2]
[341476211,1730920246583,-500.0,0.00027671,2]
[341476212,1730920246600,-500.0,0.00027671,2]
[341476213,1730920246617,-500.0,0.00027671,2]
[341476214,1730920246635,-2703.76,0.00027671,2]
[341476215,1730920246651,-759.2,0.00027671,2]
[341476216,1730920246667,-730.51,0.00027671,2]
[341476217,1730920246683,-500.0,0.00027671,2]
[341476218,1730920246699,-601.73,0.00027671,2]
[341476219,1730920246716,-500.0,0.00027671,2]
[341476220,1730920246732,-500.0,0.00027671,2]
[341476221,1730920246748,-1846.6,0.00027671,2]
[341476222,1730920246763,-500.0,0.00027671,2]
[341476223,1730920246778,-500.0,0.00027671,2]
[341476224,1730920246793,-500.0,0.00027671,2]
[341476225,1730920246808,-500.0,0.00027671,2]
[341476226,1730920246823,-500.0,0.00027671,2]
[341476227,1730920246841,-2388.47,0.00027671,2]
[341476228,1730920246856,-500.0,0.00027671,2]
[341476229,1730920246871,-217.442755,0.00027671,2]
[341476230,1730920246886,-10275.63,0.00027671,2]
[341476231,1730920246902,-500.0,0.00027671,2]
[341476232,1730920246917,-500.0,0.00027671,2]
[341476233,1730920246932,-500.0,0.00027671,2]
[341476235,1730920246946,-1087.87,0.00027671,2]
[341476236,1730920246961,-228.879307,0.00027671,2]
[341476237,1730920246975,-500.0,0.00027671,2]
[341476238,1730920246991,-934.72,0.00027671,2]
[341476239,1730920247006,-1027.83,0.00027671,2]
[341476240,1730920247021,-500.0,0.00027671,2]
[341476241,1730920247036,-500.0,0.00027671,2]
[341476242,1730920247052,-500.0,0.00027671,2]
[341476243,1730920247067,-500.0,0.00027671,2]
[341476244,1730920247082,-500.0,0.00027671,2]
[341476245,1730920247098,-500.0,0.00027671,2]
[341476246,1730920247113,-680.02,0.00027671,2]
[341476247,1730920247128,-984.02,0.00027671,2]
[341476248,1730920247143,-2654.17,0.00027671,2]
[341476249,1730920247159,-500.0,0.00027671,2]
[341476250,1730920247175,-763.29,0.00027671,2]
[341476251,1730920247190,-2923.01,0.00027671,2]
[341476252,1730920247206,-500.0,0.00027671,2]
[341476253,1730920247221,-500.0,0.00027671,2]
[341476254,1730920247238,-500.0,0.00027671,2]
[341476255,1730920247254,-506.45911627,0.00027671,2]
[341476256,1730920247269,-500.0,0.00027671,2]
[341476257,1730920247286,-1057.64,0.00027671,2]
[341476258,1730920247301,-500.0,0.00027671,2]
[341476259,1730920247317,-500.0,0.00027671,2]
[341476260,1730920247333,-500.0,0.00027671,2]
[341476261,1730920247351,-500.0,0.00027671,2]
[341476262,1730920247366,-500.0,0.00027671,2]
[341476263,1730920247384,-500.0,0.00027671,2]
[341476264,1730920247400,-500.0,0.00027671,2]
[341476265,1730920247416,-500.0,0.00027671,2]
[341476266,1730920247432,-500.0,0.00027671,2]
[341476267,1730920247448,-500.0,0.00027671,2]
[341476268,1730920247465,-669.62,0.00027671,2]
[341476269,1730920247484,-718.6,0.00027671,2]
[341476270,1730920247502,-3084.36,0.00027671,2]
[341476271,1730920247518,-500.0,0.00027671,2]
[341476272,1730920247534,-500.0,0.00027671,2]
[341476273,1730920247550,-727.89,0.00027671,2]
[341476274,1730920247565,-1861.65,0.00027671,2]
[341476275,1730920247581,-500.0,0.00027671,2]
[341476276,1730920247830,-36940.57,0.00027671,2]
[341476277,1730920247861,-500.0,0.00027671,2]
[341476278,1730920247871,-500.0,0.00027671,2]
[341476279,1730920247880,-1316.34,0.00027671,2]
[341476280,1730920247890,-3009.75,0.00027671,2]
[341476281,1730920247899,-500.0,0.00027671,2]
[341476282,1730920247909,-500.0,0.00027671,2]
[341476283,1730920247918,-500.0,0.00027671,2]
[341476284,1730920247928,-1149.45,0.00027671,2]
[341476285,1730920247937,-508.37035494,0.00027671,2]
[341476286,1730920247947,-500.0,0.00027671,2]
[341476287,1730920247956,-500.0,0.00027671,2]
[341476288,1730920247966,-4459.35,0.00027671,2]
[341476289,1730920247976,-500.0,0.00027671,2]
[341476290,1730920247985,-580.25,0.00027671,2]
[341476291,1730920247995,-539.21,0.00027671,2]
[341476292,1730920248005,-6541.84,0.00027671,2]
[341476293,1730920248015,-500.0,0.00027671,2]
[341476294,1730920248024,-1631.52,0.00027671,2]
[341476295,1730920248034,-639.26926671,0.00027671,2]
[341476296,1730920248044,-511.49017356,0.00027671,2]
[341476297,1730920248054,-777.39,0.00027671,2]
[341476298,1730920248063,-500.0,0.00027671,2]
[341476299,1730920248072,-500.0,0.00027671,2]
[341476300,1730920248082,-500.0,0.00027671,2]
[341476301,1730920248092,-2448.68,0.00027671,2]
[341476302,1730920248102,-508.63490321,0.00027671,2]
[341476303,1730920248112,-1675.07,0.00027671,2]
[341476304,1730920248122,-1611.55,0.00027671,2]
[341476305,1730920248132,-500.0,0.00027671,2]
[341476306,1730920248142,-500.0,0.00027671,2]
[341476307,1730920248151,-500.0,0.00027671,2]
[341476308,1730920248160,-500.0,0.00027671,2]
[341476309,1730920248171,-2842.56,0.00027671,2]
[341476310,1730920248180,-500.0,0.00027671,2]
[341476311,1730920248190,-204.50511031,0.00027671,2]
[341476312,1730920248200,-2090.64,0.00027671,2]
[341476313,1730920248210,-500.0,0.00027671,2]
[341476314,1730920248220,-510.96830698,0.00027671,2]
[341476315,1730920248230,-729.17,0.00027671,2]
[341476316,1730920248240,-4119.94,0.00027671,2]
[341476317,1730920248249,-500.0,0.00027671,2]
[341476318,1730920248260,-1561.32,0.00027671,2]
[341476319,1730920248270,-500.0,0.00027671,2]
[341476320,1730920248279,-507.85044474,0.00027671,2]
[341476321,1730920248289,-1446.82,0.00027671,2]
[341476322,1730920248299,-908.03,0.00027671,2]
[341476323,1730920248309,-500.0,0.00027671,2]
[341476324,1730920248318,-500.0,0.00027671,2]
[341476325,1730920248328,-500.0,0.00027671,2]
[341476326,1730920248339,-500.0,0.00027671,2]
[341476327,1730920248349,-500.0,0.00027671,2]
[341476328,1730920248358,-1649.61,0.00027671,2]
[341476329,1730920248368,-3168.62,0.00027671,2]
[341476330,1730920248377,-3106.24,0.00027671,2]
[341476331,1730920248387,-731.26,0.00027671,2]
[341476332,1730920248397,-3266.44,0.00027671,2]
[341476333,1730920248407,-752.29,0.00027671,2]
[341476334,1730920248416,-500.0,0.00027671,2]
[341476335,1730920248425,-500.0,0.00027671,2]
[341476336,1730920248435,-500.0,0.00027671,2]
[341476337,1730920248444,-500.0,0.00027671,2]
[341476338,1730920248454,-714.92,0.00027671,2]
[341476339,1730920248463,-2478.44,0.00027671,2]
[341476340,1730920248473,-645.24,0.00027671,2]
[341476341,1730920248483,-822.65,0.00027671,2]
[341476342,1730920248492,-2093.22,0.00027671,2]
[341476343,1730920248502,-1251.86,0.00027671,2]
[341476344,1730920248511,-500.0,0.00027671,2]
[341476345,1730920248521,-6208.06,0.00027671,2]
[341476346,1730920248531,-500.0,0.00027671,2]
[341476347,1730920248540,-2267.91,0.00027671,2]
[341476348,1730920248549,-500.0,0.00027671,2]
[341476349,1730920248559,-509.89845525,0.00027671,2]
[341476350,1730920248568,-500.0,0.00027671,2]
[341476351,1730920248578,-500.0,0.00027671,2]
[341476352,1730920248589,-932.36,0.00027671,2]
[341476353,1730920248598,-1161.0,0.00027671,2]
[341476354,1730920248608,-831.94,0.00027671,2]
[341476355,1730920248617,-500.0,0.00027671,2]
[341476356,1730920248628,-726.61,0.00027671,2]
[341476357,1730920248638,-1064.72,0.00027671,2]
[341476358,1730920248647,-627.41,0.00027671,2]
[341476359,1730920248657,-1820.52,0.00027671,2]
[341476360,1730920248666,-1990.87,0.00027671,2]
[341476361,1730920248677,-500.0,0.00027671,2]
[341476362,1730920248686,-750.06,0.00027671,2]
[341476363,1730920248695,-500.0,0.00027671,2]
[341476364,1730920248707,-5050.46,0.00027671,2]
[341476365,1730920248716,-10580.04,0.00027671,2]
[341476366,1730920248725,-1538.2,0.00027671,2]
[341476367,1730920248735,-500.0,0.00027671,2]
[341476368,1730920248744,-500.0,0.00027671,2]
[341476369,1730920248754,-500.0,0.00027671,2]
[341476370,1730920248763,-1128.8,0.00027671,2]
[341476371,1730920248773,-500.0,0.00027671,2]
[341476372,1730920248782,-7716.34,0.00027671,2]
[341476373,1730920248791,-500.0,0.00027671,2]
[341476374,1730920248801,-500.0,0.00027671,2]
[341476375,1730920248810,-500.0,0.00027671,2]
[341476376,1730920248819,-500.0,0.00027671,2]
[341476377,1730920248829,-3986.66,0.00027671,2]
[341476378,1730920248839,-500.0,0.00027671,2]
[341476379,1730920248848,-656.74,0.00027671,2]
[341476380,1730920248857,-5027.84,0.00027671,2]
[341476381,1730920248866,-500.63,0.00027671,2]
[341476382,1730920248876,-4036.63,0.00027671,2]
[341476383,1730920248885,-500.0,0.00027671,2]
[341476384,1730920248895,-6250.81,0.00027671,2]
[341476385,1730920248904,-934.04,0.00027671,2]
[341476386,1730920248913,-500.0,0.00027671,2]
[341476387,1730920248922,-500.0,0.00027671,2]
[341476388,1730920248931,-500.0,0.00027671,2]
[341476389,1730920248941,-2428.87,0.00027671,2]
[341476390,1730920248950,-3700.97,0.00027671,2]
[341476391,1730920248959,-1135.07,0.00027671,2]
[341476392,1730920248969,-3046.7,0.00027671,2]
[341476393,1730920248978,-3817.82,0.00027671,2]
[341476394,1730920248988,-740.35,0.00027671,2]
[341476395,1730920248998,-3060.48,0.00027671,2]
[341476396,1730920249007,-500.0,0.00027671,2]
[341476397,1730920249016,-500.0,0.00027671,2]
[341476398,1730920249026,-500.0,0.00027671,2]
[341476399,1730920249035,-500.0,0.00027671,2]
[341476400,1730920249045,-1194.34,0.00027671,2]
[341476401,1730920249055,-3836.62,0.00027671,2]
[341476402,1730920249064,-4916.89,0.00027671,2]
[341476403,1730920249073,-500.0,0.00027671,2]
[341476404,1730920249084,-500.0,0.00027671,2]
[341476405,1730920249094,-3245.5,0.00027671,2]
[341476406,1730920249103,-1506.02,0.00027671,2]
[341476407,1730920249113,-500.0,0.00027671,2]
[341476408,1730920249122,-2015.43,0.00027671,2]
[341476409,1730920249131,-500.0,0.00027671,2]
[341476410,1730920249142,-500.0,0.00027671,2]
[341476411,1730920249151,-1997.41,0.00027671,2]
[341476412,1730920249160,-548.49,0.00027671,2]
[341476413,1730920249170,-500.0,0.00027671,2]
[341476414,1730920249179,-500.0,0.00027671,2]
[341476415,1730920249188,-1188.15,0.00027671,2]
[341476416,1730920249198,-500.0,0.00027671,2]
[341476417,1730920249208,-3551.02,0.00027671,2]
[341476418,1730920249218,-500.0,0.00027671,2]
[341476419,1730920249228,-9431.91,0.00027671,2]
[341476420,1730920249237,-500.0,0.00027671,2]
[341476421,1730920249247,-500.0,0.00027671,2]
[341476422,1730920249257,-500.0,0.00027671,2]
[341476423,1730920249266,-543.87,0.00027671,2]
[341476424,1730920249276,-500.0,0.00027671,2]
[341476425,1730920249285,-500.0,0.00027671,2]
[341476426,1730920249295,-2959.67,0.00027671,2]
[341476427,1730920249304,-843.81,0.00027671,2]
[341476428,1730920249314,-500.0,0.00027671,2]
[341476429,1730920249323,-500.0,0.00027671,2]
[341476430,1730920249332,-2640.34,0.00027671,2]
[341476431,1730920249342,-2985.74,0.00027671,2]
[341476432,1730920249351,-500.0,0.00027671,2]
[341476433,1730920249361,-643.72,0.00027671,2]
[341476434,1730920249371,-500.0,0.00027671,2]
[341476435,1730920249380,-3511.16,0.00027671,2]
[341476436,1730920249390,-500.0,0.00027671,2]
[341476437,1730920249400,-642.61,0.00027671,2]
[341476438,1730920249409,-528.21,0.00027671,2]
[341476439,1730920249419,-500.0,0.00027671,2]
[341476440,1730920249428,-293.72551315,0.00027671,2]
[341476441,1730920249438,-500.0,0.00027671,2]
[341476442,1730920249447,-636.38,0.00027671,2]
[341476443,1730920249457,-500.0,0.00027671,2]
[341476444,1730920249467,-500.0,0.00027671,2]
[341476445,1730920249476,-500.0,0.00027671,2]
[341476446,1730920249485,-500.0,0.00027671,2]
[341476447,1730920249494,-500.0,0.00027671,2]
[341476448,1730920249504,-836.94,0.00027671,2]
[341476449,1730920249513,-500.0,0.00027671,2]
[341476450,1730920249522,-500.0,0.00027671,2]
[341476451,1730920249532,-500.0,0.00027671,2]
[341476452,1730920249541,-817.7,0.00027671,2]
[341476453,1730920249550,-1645.62,0.00027671,2]
[341476454,1730920249559,-500.0,0.00027671,2]
[341476455,1730920249568,-500.0,0.00027671,2]
[341476456,1730920249578,-820.62,0.00027671,2]
[341476457,1730920249589,-500.0,0.00027671,2]
[341476458,1730920249598,-1697.61,0.00027671,2]
[341476459,1730920249607,-1293.6,0.00027671,2]
[341476460,1730920249617,-500.0,0.00027671,2]
[341476461,1730920249627,-500.0,0.00027671,2]
[341476462,1730920249639,-500.0,0.00027671,2]
[341476463,1730920249648,-643.83,0.00027671,2]
[341476464,1730920249657,-4036.84,0.00027671,2]
[341476465,1730920249667,-2894.45,0.00027671,2]
[341476466,1730920249677,-500.0,0.00027671,2]
[341476467,1730920249686,-500.0,0.00027671,2]
[341476468,1730920249695,-500.0,0.00027671,2]
[341476469,1730920249706,-500.0,0.00027671,2]
[341476470,1730920249715,-500.0,0.00027671,2]
[341476471,1730920249725,-500.0,0.00027671,2]
[341476472,1730920249734,-500.0,0.00027671,2]
[341476473,1730920249744,-500.0,0.00027671,2]
[341476474,1730920249753,-500.0,0.00027671,2]
[341476475,1730920249762,-276.34,0.00027706,2]
[341476476,1730920249772,-322.35,0.00027712,2]
[341476477,1730920249781,-7300.0,0.000278,10]
[341476478,1730920249790,-250.0,0.000278,2]
[341476479,1730920249800,-362.1,0.000278,2]
[341476480,1730920249809,-685.09,0.00027814,2]
[341476481,1730920249819,-9700.0,0.000279,10]
[341476482,1730920249828,-927.59165322,0.00027935,2]
[341476483,1730920249839,-661.67,0.00027944,2]
[341476484,1730920249848,-500.0,0.00027945,2]
[341476485,1730920249858,-500.0,0.00027945,2]
[341476486,1730920249867,-500.0,0.00027945,2]
[341476487,1730920249877,-500.0,0.00027945,2]
[341476488,1730920249886,-500.0,0.00027945,2]
[341476489,1730920249896,-500.0,0.00027945,2]
[341476490,1730920249905,-2920.66,0.00027945,2]
[341476491,1730920249915,-500.0,0.00027945,2]
[341476492,1730920249925,-500.0,0.00027945,2]
[341476493,1730920249934,-614.25,0.00027945,2]
[341476494,1730920249944,-574.18,0.00027945,2]
[341476495,1730920249953,-500.0,0.00027945,2]
[341476496,1730920249963,-500.0,0.00027945,2]
[341476497,1730920249973,-500.0,0.00027945,2]
[341476498,1730920249983,-500.0,0.00027945,2]
[341476499,1730920249992,-1205.75,0.00027945,2]
[341476500,1730920250002,-750.76,0.00027945,2]
[341476501,1730920250011,-500.0,0.00027945,2]
[341476502,1730920250021,-500.0,0.00027945,2]
[341476503,1730920250031,-500.0,0.00027945,2]
[341476504,1730920250040,-500.0,0.00027945,2]
[341476505,1730920250049,-500.0,0.00027945,2]
[341476506,1730920250059,-500.0,0.00027945,2]
[341476507,1730920250069,-1062.35,0.00027945,2]
[341476508,1730920250078,-500.0,0.00027945,2]
[341476509,1730920250089,-997.57,0.00027945,2]
[341476510,1730920250098,-500.0,0.00027945,2]
[341476511,1730920250108,-500.0,0.00027945,2]
[341476512,1730920250118,-500.0,0.00027945,2]
[341476513,1730920250129,-588.30603142,0.00027945,2]
[341476514,1730920250138,-500.0,0.00027945,2]
[341476515,1730920250149,-500.0,0.00027945,2]
[341476516,1730920250160,-500.0,0.00027945,2]
[341476517,1730920250171,-500.0,0.00027945,2]
[341476518,1730920250185,-500.0,0.00027945,2]
[341476519,1730920250195,-500.0,0.00027945,2]
[341476520,1730920250205,-1292.06,0.00027945,2]
[341476521,1730920250215,-500.0,0.00027945,2]
[341476522,1730920250225,-500.0,0.00027945,2]
[341476523,1730920250234,-502.00782842,0.00027945,2]
[341476524,1730920250244,-500.0,0.00027945,2]
[341476525,1730920250254,-500.0,0.00027945,2]
[341476526,1730920250263,-500.0,0.00027945,2]
[341476527,1730920250272,-500.0,0.00027945,2]
[341476528,1730920250282,-500.0,0.00027945,2]
[341476529,1730920250292,-525.55339336,0.00027945,2]
[341476530,1730920250301,-500.0,0.00027945,2]
[341476531,1730920250311,-500.0,0.00027945,2]
[341476532,1730920250320,-500.0,0.00027945,2]
[341476533,1730920250330,-1826.45,0.00027945,2]
[341476534,1730920250341,-621.32,0.00027945,2]
[341476535,1730920250351,-500.0,0.00027945,2]
[341476536,1730920250360,-546.43,0.00027945,2]
[341476537,1730920250370,-663.78,0.00027945,2]
[341476538,1730920250379,-500.0,0.00027945,2]
[341476539,1730920250389,-500.0,0.00027945,2]
[341476540,1730920250398,-500.0,0.00027945,2]
[341476541,1730920250408,-500.0,0.00027945,2]
[341476542,1730920250418,-500.0,0.00027945,2]
[341476543,1730920250427,-617.91,0.00027945,2]
[341476544,1730920250436,-338.1695404,0.00027945,2]
[341476545,1730920250446,-357.64865889,0.00027945,2]
[341476546,1730920250455,-500.0,0.00027945,2]
[341476547,1730920250465,-500.0,0.00027945,2]
[341476548,1730920250474,-500.0,0.00027945,2]
[341476549,1730920250483,-16265.4568999,0.00027945,2]
[341476550,1730920250493,-500.0,0.00027945,2]
[341476551,1730920250502,-1790.04,0.00027945,2]
[341476552,1730920250512,-500.0,0.00027945,2]
[341476553,1730920250521,-500.0,0.00027945,2]
[341476554,1730920250532,-500.0,0.00027945,2]
[341476555,1730920250541,-1554.56,0.00027945,2]
[341476556,1730920250551,-500.0,0.00027945,2]
[341476557,1730920250560,-500.0,0.00027945,2]
[341476558,1730920250570,-500.0,0.00027945,2]
[341476559,1730920250579,-525.88,0.00027945,2]
[341476560,1730920250589,-500.0,0.00027945,2]
[341476561,1730920250599,-500.0,0.00027945,2]
[341476562,1730920250608,-711.29,0.00027945,2]
[341476563,1730920250618,-500.0,0.00027945,2]
[341476564,1730920250631,-500.0,0.00027945,2]
[341476565,1730920250640,-500.0,0.00027945,2]
[341476566,1730920250650,-504.10319403,0.00027945,2]
[341476567,1730920250659,-1234.48,0.00027945,2]
[341476568,1730920250670,-500.0,0.00027945,2]
[341476569,1730920250680,-500.0,0.00027945,2]
[341476570,1730920250689,-470.60299226,0.00027945,2]
[341476571,1730920250699,-500.0,0.00027945,2]
[341476572,1730920250711,-501.54284622,0.00027945,2]
[341476573,1730920250721,-500.0,0.00027945,2]
[341476574,1730920250731,-515.4144948,0.00027945,2]
[341476575,1730920250740,-500.0,0.00027945,2]
[341476576,1730920250921,-1153.06,0.00027945,2]
[341476577,1730920250942,-500.0,0.00027945,2]
[341476578,1730920250953,-500.0,0.00027945,2]
[341476579,1730920250963,-500.0,0.00027945,2]
[341476580,1730920250973,-500.0,0.00027945,2]
[341476581,1730920250983,-500.0,0.00027945,2]
[341476582,1730920250992,-500.0,0.00027945,2]
[341476583,1730920251002,-957.34,0.00027945,2]
[341476584,1730920251012,-500.0,0.00027945,2]
[341476585,1730920251021,-500.0,0.00027945,2]
[341476586,1730920251031,-500.0,0.00027945,2]
[341476587,1730920251041,-500.0,0.00027945,2]
[341476588,1730920251050,-500.0,0.00027945,2]
[341476589,1730920251060,-1196.66,0.00027945,2]
[341476590,1730920251069,-500.0,0.00027945,2]
[341476591,1730920251079,-500.0,0.00027945,2]
[341476592,1730920251090,-500.0,0.00027945,2]
[341476593,1730920251100,-1001.64,0.00027945,2]
[341476594,1730920251109,-500.0,0.00027945,2]
[341476595,1730920251118,-500.0,0.00027945,2]
[341476596,1730920251128,-1472.58,0.00027945,2]
[341476597,1730920251138,-500.0,0.00027945,2]
[341476598,1730920251148,-500.0,0.00027945,2]
[341476599,1730920251158,-500.0,0.00027945,2]
[341476600,1730920251168,-1605.02,0.00027945,2]
[341476601,1730920251178,-500.0,0.00027945,2]
[341476602,1730920251188,-271.12,0.00027945,2]
[341476603,1730920251198,-500.0,0.00027945,2]
[341476604,1730920251208,-281.04592137,0.00027945,2]
[341476605,1730920251218,-500.0,0.00027945,2]
[341476606,1730920251227,-652.62,0.00027945,2]
[341476607,1730920251237,-500.0,0.00027945,2]
[341476608,1730920251246,-500.0,0.00027945,2]
[341476609,1730920251256,-500.0,0.00027945,2]
[341476610,1730920251266,-546.70286497,0.00027945,2]
[341476611,1730920251275,-500.0,0.00027945,2]
[341476612,1730920251286,-500.0,0.00027945,2]
[341476613,1730920251295,-500.0,0.00027945,2]
[341476614,1730920251304,-500.0,0.00027945,2]
[341476615,1730920251314,-500.0,0.00027945,2]
[341476616,1730920251324,-500.0,0.00027945,2]
[341476617,1730920251334,-500.0,0.00027945,2]
[341476618,1730920251345,-500.0,0.00027945,2]
[341476619,1730920251354,-1379.21,0.00027945,2]
[341476620,1730920251364,-500.0,0.00027945,2]
[341476621,1730920251374,-500.0,0.00027945,2]
[341476622,1730920251384,-1209.69,0.00027945,2]
[341476623,1730920251394,-500.0,0.00027945,2]
[341476624,1730920251403,-500.0,0.00027945,2]
[341476625,1730920251413,-500.0,0.00027945,2]
[341476626,1730920251422,-1638.01,0.00027945,2]
[341476627,1730920251432,-500.0,0.00027945,2]
[341476628,1730920251442,-500.0,0.00027945,2]
[341476629,1730920251453,-500.0,0.00027945,2]
[341476630,1730920251462,-630.81721006,0.00027945,2]
[341476631,1730920251472,-1179.88,0.00027945,2]
[341476632,1730920251481,-500.0,0.00027945,2]
[341476633,1730920251491,-500.0,0.00027945,2]
[341476634,1730920251500,-639.69,0.00027945,2]
[341476635,1730920251510,-600.21,0.00027945,2]
[341476636,1730920251521,-500.0,0.00027945,2]
[341476637,1730920251530,-170.8480838,0.00027945,2]
[341476638,1730920251540,-500.0,0.00027945,2]
[341476639,1730920251549,-500.0,0.00027945,2]
[341476640,1730920251559,-291.82249609,0.00027945,2]
[341476641,1730920251569,-500.0,0.00027945,2]
[341476642,1730920251578,-500.0,0.00027945,2]
[341476643,1730920251589,-500.0,0.00027945,2]
[341476644,1730920251599,-500.0,0.00027945,2]
[341476645,1730920251609,-500.0,0.00027945,2]
[341476646,1730920251619,-500.0,0.00027945,2]
[341476647,1730920251631,-912.36,0.00027945,2]
[341476648,1730920251640,-192.37777379,0.00027945,2]
[341476649,1730920251650,-500.0,0.00027945,2]
[341476650,1730920251659,-517.79240583,0.00027945,2]
[341476651,1730920251669,-500.0,0.00027945,2]
[341476652,1730920251679,-508.65,0.00027945,2]
[341476653,1730920251689,-500.0,0.00027945,2]
[341476654,1730920251698,-500.0,0.00027945,2]
[341476655,1730920251708,-500.0,0.00027945,2]
[341476656,1730920251718,-500.0,0.00027945,2]
[341476657,1730920251727,-500.0,0.00027945,2]
[341476658,1730920251737,-542.72456852,0.00027945,2]
[341476659,1730920251746,-500.0,0.00027945,2]
[341476660,1730920251756,-610.62,0.00027945,2]
[341476661,1730920251766,-500.0,0.00027945,2]